[Event "Klubbmästerskap 2025 Hängrond"]
[Site "Linköping, Sweden"]
[Date "2025.03.11"]
[Round "3.1"]
[White "Modéer, Björn"]
[Black "Tonkin, Archie"]
[Result "1-0"]
[TimeControl "90 min + 30 sec/move"]
[WhiteElo "1700"]
[BlackElo "1657"]

1. d4 {[%clk 01:30:46]} {[%emt 00:00:15]} d5 {[%clk 01:31:07]} {[%emt
00:00:20]} 2. Bf4 {[%clk 01:31:08]} {[%emt 00:00:08]} e6 {[%clk 01:31:03]}
{[%emt 00:00:34]} 3. e3 {[%clk 01:31:19]} {[%emt 00:00:20]} Bd6 {[%clk
01:30:39]} {[%emt 00:00:53]} 4. Bg3 {[%clk 01:31:21]} {[%emt 00:00:28]} Nf6
{[%clk 01:30:08]} {[%emt 00:01:00]} 5. Nd2 {[%clk 01:31:12]} {[%emt 00:00:38]}
Nc6 {[%clk 01:28:41]} {[%emt 00:01:59]} 6. Ngf3 {[%clk 01:31:02]} {[%emt
00:00:39]} h6 {[%clk 01:28:30]} {[%emt 00:00:41]} 7. c3 {[%clk 01:28:57]}
{[%emt 00:02:36]} a6 {[%clk 01:27:22]} {[%emt 00:01:38]} 8. Bd3 {[%clk
01:28:59]} {[%emt 00:00:28]} b5 {[%clk 01:24:14]} {[%emt 00:03:37]} 9. a3
{[%clk 01:28:09]} {[%emt 00:01:21]} Bb7 {[%clk 01:22:30]} {[%emt 00:02:13]} 10.
Ne5 {[%clk 01:27:53]} {[%emt 00:00:46]} Bxe5 {[%clk 01:21:20]} {[%emt
00:01:40]} 11. dxe5 {[%clk 01:27:56]} {[%emt 00:00:28]} Nd7 {[%clk 01:19:57]}
{[%emt 00:01:52]} 12. f4 {[%clk 01:26:34]} {[%emt 00:01:53]} Nc5 {[%clk
01:17:31]} {[%emt 00:02:55]} 13. Bc2 {[%clk 01:25:56]} {[%emt 00:01:08]} Ne7
{[%clk 01:15:13]} {[%emt 00:02:47]} 14. O-O {[%clk 01:17:08]} {[%emt 00:09:19]}
g6 {[%clk 01:11:05]} {[%emt 00:04:38]} 15. Bh4 {[%clk 01:13:39]} {[%emt
00:03:59]} Qc8 {[%clk 01:09:13]} {[%emt 00:02:22]} 16. Bxe7 {[%clk 01:07:35]}
{[%emt 00:06:34]} Kxe7 {[%clk 01:08:37]} {[%emt 00:01:05]} 17. Qg4 {[%clk
01:03:47]} {[%emt 00:04:17]} Kf8 {[%clk 01:04:33]} {[%emt 00:04:34]} 18. Qh3
{[%clk 00:57:58]} {[%emt 00:06:20]} Kg7 {[%clk 01:01:31]} {[%emt 00:03:31]} 19.
Nf3 {[%clk 00:53:28]} {[%emt 00:05:01]} Nd7 {[%clk 00:57:58]} {[%emt 00:04:02]}
20. g4 {[%clk 00:51:25]} {[%emt 00:02:34]} Nf8 {[%clk 00:53:30]} {[%emt
00:04:58]} 21. f5 {[%clk 00:48:32]} {[%emt 00:03:23]} exf5 {[%clk 00:45:26]}
{[%emt 00:08:33]} 22. gxf5 {[%clk 00:47:52]} {[%emt 00:01:11]} g5 {[%clk
00:45:31]} {[%emt 00:00:25]} 23. Qg4 {[%clk 00:44:09]} {[%emt 00:04:13]} Nh7
{[%clk 00:40:00]} {[%emt 00:06:00]} 24. h4 {[%clk 00:39:59]} {[%emt 00:04:41]}
f6 {[%clk 00:35:34]} {[%emt 00:04:55]} 25. Kf2 {[%clk 00:32:54]} {[%emt
00:07:35]} Kf8 {[%clk 00:32:11]} {[%emt 00:03:54]} 26. Qh5 {[%clk 00:29:45]}
{[%emt 00:03:39]} Ke7 {[%clk 00:18:56]} {[%emt 00:13:43]} 27. Qxh6 {[%clk
00:25:57]} {[%emt 00:04:18]} Qf8 {[%clk 00:19:19]} {[%emt 00:00:06]} 28. Qxf8+
{[%clk 00:22:12]} {[%emt 00:04:16]} Raxf8 {[%clk 00:19:22]} {[%emt 00:00:27]}
29. exf6+ {[%clk 00:22:06]} {[%emt 00:00:36]} Kxf6 {[%clk 00:18:38]} {[%emt
00:01:14]} 30. Rg1 {[%clk 00:19:16]} {[%emt 00:03:19]} Rhg8 {[%clk 00:16:00]}
{[%emt 00:03:08]} 31. hxg5+ {[%clk 00:18:52]} {[%emt 00:00:54]} Nxg5 {[%clk
00:16:02]} {[%emt 00:00:27]} 32. Nxg5 {[%clk 00:19:08]} {[%emt 00:00:15]} Rxg5
{[%clk 00:16:22]} {[%emt 00:00:09]} 33. Rxg5 {[%clk 00:19:27]} {[%emt
00:00:12]} Kxg5 {[%clk 00:16:42]} {[%emt 00:00:08]} 34. Rg1+ {[%clk 00:19:48]}
{[%emt 00:00:10]} Kf6 {[%clk 00:16:22]} {[%emt 00:00:49]} 35. Rg6+ {[%clk
00:17:33]} {[%emt 00:02:45]} Ke7 {[%clk 00:15:55]} {[%emt 00:00:58]} 36. Kg3
{[%clk 00:16:27]} {[%emt 00:01:36]} c6 {[%clk 00:14:33]} {[%emt 00:01:52]} 37.
Kf4 {[%clk 00:15:06]} {[%emt 00:01:51]} Rf6 {[%clk 00:14:52]} {[%emt 00:00:10]}
38. Rg7+ {[%clk 00:13:51]} {[%emt 00:01:45]} Rf7 {[%clk 00:15:07]} {[%emt
00:00:15]} 39. Rxf7+ {[%clk 00:14:03]} {[%emt 00:00:17]} Kxf7 {[%emt 00:00:03]}
40. Ke5 {[%emt 00:00:22]} c5 {[%clk 00:13:50]} {[%emt 00:01:21]} 41. e4 {[%clk
00:11:49]} {[%emt 00:02:45]} dxe4 {[%clk 00:13:49]} {[%emt 00:00:31]} 42. Bxe4
{[%clk 00:12:08]} {[%emt 00:00:11]} Bc8 {[%clk 00:14:06]} {[%emt 00:00:13]} 43.
Bd5+ {[%clk 00:11:33]} {[%emt 00:01:06]} Ke7 {[%clk 00:14:20]} {[%emt
00:00:50]} 44. f6+ {[%clk 00:12:00]} {[%emt 00:00:29]} Ke8 {[%clk 00:13:55]}
{[%emt 00:00:53]} 45. Kd6 {[%clk 00:11:45]} {[%emt 00:00:47]} c4 {[%clk
00:14:00]} {[%emt 00:00:24]} 46. Kc7 {[%clk 00:11:28]} {[%emt 00:00:48]} 1-0

[Event "Klubbmästerskap 2025 Hängrond"]
[Site "Linköping, Sweden"]
[Date "2025.03.11"]
[Round "3.2"]
[White "Stefanovic, Dragan 1958"]
[Black "Karlsson, Henrik 1974"]
[Result "0-1"]
[TimeControl "90 min + 30 sec/move"]
[WhiteElo "1791"]
[BlackElo "1804"]

1. e4 {[%clk 01:30:56]} {[%emt 00:00:04]} e6 {[%clk 01:30:55]} {[%emt
00:00:05]} 2. d4 {[%clk 01:31:11]} {[%emt 00:00:15]} d5 {[%clk 01:31:20]}
{[%emt 00:00:05]} 3. Nd2 {[%clk 01:31:22]} {[%emt 00:00:19]} a6 {[%clk
01:27:18]} {[%emt 00:04:32]} 4. e5 {[%clk 01:28:59]} {[%emt 00:02:52]} c5
{[%clk 01:27:23]} {[%emt 00:00:24]} 5. c3 {[%clk 01:29:09]} {[%emt 00:00:20]}
Nc6 {[%clk 01:27:01]} {[%emt 00:00:51]} 6. Ndf3 {[%clk 01:26:41]} {[%emt
00:02:59]} Bd7 {[%clk 01:26:53]} {[%emt 00:00:37]} 7. a3 {[%clk 01:25:26]}
{[%emt 00:01:45]} Qc7 {[%clk 01:26:44]} {[%emt 00:00:39]} 8. Bd3 {[%clk
01:25:22]} {[%emt 00:00:35]} c4 {[%clk 01:23:27]} {[%emt 00:03:47]} 9. Bc2
{[%clk 01:22:42]} {[%emt 00:03:09]} Na5 {[%clk 01:23:45]} {[%emt 00:00:13]} 10.
Ng5 {[%clk 01:19:58]} {[%emt 00:03:13]} Be7 {[%clk 01:20:05]} {[%emt 00:04:10]}
11. Nxh7 {[%clk 01:11:08]} {[%emt 00:09:20]} O-O-O {[%clk 01:18:03]} {[%emt
00:02:32]} 12. Ng5 {[%clk 01:09:00]} {[%emt 00:02:37]} Bxg5 {[%clk 01:16:36]}
{[%emt 00:01:58]} 13. Bxg5 {[%clk 01:09:12]} {[%emt 00:00:18]} f6 {[%clk
01:17:01]} {[%emt 00:00:06]} 14. Bf4 {[%clk 01:09:17]} {[%emt 00:00:25]} g5
{[%clk 01:17:24]} {[%emt 00:00:06]} 15. Bg3 {[%clk 01:09:33]} {[%emt 00:00:15]}
f5 {[%clk 01:17:45]} {[%emt 00:00:09]} 16. f4 {[%clk 01:07:31]} {[%emt
00:02:32]} gxf4 {[%clk 01:16:12]} {[%emt 00:02:03]} 17. Bxf4 {[%clk 01:07:46]}
{[%emt 00:00:15]} Ne7 {[%clk 01:07:47]} {[%emt 00:08:54]} 18. Bg5 {[%clk
01:01:58]} {[%emt 00:06:19]} Be8 {[%clk 01:07:05]} {[%emt 00:01:12]} 19. Ne2
{[%clk 00:56:31]} {[%emt 00:05:57]} Bh5 {[%clk 01:06:16]} {[%emt 00:01:18]} 20.
b4 {[%clk 00:52:59]} {[%emt 00:04:02]} cxb3 {[%clk 00:55:47]} {[%emt 00:10:59]}
21. Bxb3 {[%clk 00:52:18]} {[%emt 00:01:11]} Rdg8 {[%clk 00:41:44]} {[%emt
00:14:34]} 22. Bxe7 {[%clk 00:16:46]} {[%emt 00:36:03]} Qxe7 {[%clk 00:41:48]}
{[%emt 00:00:25]} 23. g3 {[%clk 00:17:10]} {[%emt 00:00:06]} f4 {[%clk
00:35:11]} {[%emt 00:07:07]} 24. Qc2 {[%clk 00:12:51]} {[%emt 00:04:49]} Bxe2
{[%clk 00:31:45]} {[%emt 00:03:57]} 25. Kxe2 {[%clk 00:12:34]} {[%emt
00:00:46]} Qg5 {[%clk 00:29:44]} {[%emt 00:02:30]} 26. Rag1 {[%clk 00:05:22]}
{[%emt 00:07:43]} fxg3 {[%clk 00:23:14]} {[%emt 00:07:01]} 27. Ba2 {[%clk
00:03:11]} {[%emt 00:02:40]} g2 {[%clk 00:22:42]} {[%emt 00:01:02]} 28. h4
{[%clk 00:00:36]} {[%emt 00:03:06]} Qg4+ {[%clk 00:23:03]} {[%emt 00:00:08]}
0-1

[Event "Klubbmästerskap 2025 Hängrond"]
[Site "Linköping, Sweden"]
[Date "2025.03.11"]
[Round "3.4"]
[White "Thyberg, André"]
[Black "Rosenbecker, Daniel"]
[Result "1-0"]
[TimeControl "90 min + 30 sec/move"]
[BlackTitle "CM"]
[WhiteElo "1961"]
[BlackElo "2110"]

1. e4 {[%clk 01:30:41]} {[%emt 00:00:18]} e5 {[%clk 01:30:55]} {[%emt
00:00:06]} 2. Nf3 {[%clk 01:31:06]} {[%emt 00:00:05]} Nc6 {[%clk 01:31:22]}
{[%emt 00:00:03]} 3. Nc3 {[%clk 01:31:27]} {[%emt 00:00:09]} Nf6 {[%clk
01:31:46]} {[%emt 00:00:07]} 4. Bb5 {[%clk 01:31:50]} {[%emt 00:00:06]} Nd4
{[%clk 01:32:10]} {[%emt 00:00:05]} 5. Nxd4 {[%clk 01:32:01]} {[%emt 00:00:18]}
exd4 {[%clk 01:32:27]} {[%emt 00:00:15]} 6. e5 {[%clk 01:32:25]} {[%emt
00:00:06]} dxc3 {[%clk 01:32:29]} {[%emt 00:00:27]} 7. exf6 {[%clk 01:32:48]}
{[%emt 00:00:07]} Qxf6 {[%clk 01:30:47]} {[%emt 00:02:13]} 8. dxc3 {[%clk
01:32:56]} {[%emt 00:00:23]} Be7 {[%clk 01:28:51]} {[%emt 00:02:25]} 9. O-O
{[%clk 01:32:56]} {[%emt 00:00:29]} O-O {[%clk 01:29:13]} {[%emt 00:00:08]} 10.
Be3 {[%clk 01:31:55]} {[%emt 00:01:30]} d5 {[%clk 01:28:29]} {[%emt 00:01:14]}
11. Re1 {[%clk 01:30:32]} {[%emt 00:01:53]} Bd6 {[%clk 01:28:00]} {[%emt
00:00:59]} 12. Bd3 {[%clk 01:21:19]} {[%emt 00:09:42]} Be6 {[%clk 01:04:48]}
{[%emt 00:23:42]} 13. Qh5 {[%clk 01:20:07]} {[%emt 00:01:42]} h6 {[%clk
01:02:26]} {[%emt 00:02:53]} 14. Bd4 {[%clk 01:18:32]} {[%emt 00:02:05]} Qg5
{[%clk 01:02:42]} {[%emt 00:00:14]} 15. Qxg5 {[%clk 01:15:12]} {[%emt
00:03:50]} hxg5 {[%clk 01:03:07]} {[%emt 00:00:04]} 16. Be5 {[%clk 01:15:28]}
{[%emt 00:00:14]} Rad8 {[%clk 01:01:37]} {[%emt 00:02:01]} 17. Re3 {[%clk
01:14:21]} {[%emt 00:01:36]} f6 {[%clk 00:47:49]} {[%emt 00:14:18]} 18. Bxd6
{[%clk 01:13:34]} {[%emt 00:01:18]} Rxd6 {[%clk 00:48:14]} {[%emt 00:00:05]} 19.
Rae1 {[%clk 01:13:45]} {[%emt 00:00:18]} Kf7 {[%clk 00:47:39]} {[%emt
00:01:06]} 20. Bg6+ {[%clk 00:48:12]} {[%emt 00:26:02]} Kxg6 {[%clk 00:47:56]}
{[%emt 00:00:14]} 21. Rxe6 {[%clk 00:48:36]} {[%emt 00:00:06]} Rxe6 {[%clk
00:48:17]} {[%emt 00:00:10]} 22. Rxe6 {[%clk 00:49:01]} {[%emt 00:00:05]} Kf7
{[%clk 00:48:40]} {[%emt 00:00:07]} 23. Re3 {[%clk 00:48:46]} {[%emt 00:00:44]}
Rd8 {[%clk 00:48:40]} {[%emt 00:00:30]} 24. Kf1 {[%clk 00:48:20]} {[%emt
00:00:56]} Rd6 {[%clk 00:48:55]} {[%emt 00:00:16]} 25. Ke2 {[%clk 00:48:34]}
{[%emt 00:00:16]} Ra6 {[%clk 00:45:24]} {[%emt 00:04:02]} 26. a3 {[%clk
00:48:51]} {[%emt 00:00:13]} Rb6 {[%clk 00:35:40]} {[%emt 00:10:14]} 27. b3
{[%clk 00:48:26]} {[%emt 00:00:55]} c5 {[%clk 00:35:20]} {[%emt 00:00:49]} 28.
Kd3 {[%clk 00:47:22]} {[%emt 00:01:34]} Re6 {[%clk 00:31:58]} {[%emt 00:03:52]}
29. Rxe6 {[%clk 00:44:33]} {[%emt 00:03:19]} Kxe6 {[%clk 00:32:24]} {[%emt
00:00:05]} 30. c4 {[%clk 00:44:49]} {[%emt 00:00:13]} g4 {[%clk 00:27:44]}
{[%emt 00:05:10]} 31. c3 {[%clk 00:39:50]} {[%emt 00:05:29]} Kd6 {[%clk
00:14:39]} {[%emt 00:13:34]} 32. b4 {[%clk 00:36:05]} {[%emt 00:04:15]} b6
{[%clk 00:14:10]} {[%emt 00:00:59]} 33. b5 {[%clk 00:33:44]} {[%emt 00:02:51]}
Ke5 {[%clk 00:13:47]} {[%emt 00:00:53]} 34. cxd5 {[%clk 00:33:01]} {[%emt
00:01:14]} Kxd5 {[%clk 00:14:12]} {[%emt 00:00:05]} 35. c4+ {[%clk 00:33:13]}
{[%emt 00:00:17]} Ke5 {[%clk 00:13:57]} {[%emt 00:00:45]} 36. Ke3 {[%clk
00:32:52]} {[%emt 00:00:50]} g6 {[%clk 00:01:56]} {[%emt 00:12:32]} 37. h3
{[%clk 00:32:03]} {[%emt 00:01:18]} gxh3 {[%clk 00:02:00]} {[%emt 00:00:27]} 38.
gxh3 {[%clk 00:32:31]} {[%emt 00:00:01]} Kf5 {[%clk 00:01:13]} {[%emt
00:01:17]} 39. f4 {[%clk 00:32:42]} {[%emt 00:00:18]} Ke6 {[%clk 00:00:45]}
{[%emt 00:00:59]} 40. Ke4 {[%clk 00:32:07]} {[%emt 00:01:04]} f5+ {[%clk
00:00:44]} {[%emt 00:00:32]} 41. Kf3 {[%clk 00:32:21]} {[%emt 00:00:15]} Kf6
{[%clk 00:00:43]} {[%emt 00:00:32]} 42. Kg3 {[%clk 00:32:20]} {[%emt 00:00:31]}
Kg7 {[%clk 00:00:53]} {[%emt 00:00:20]} 43. Kh4 {[%clk 00:32:40]} {[%emt
00:00:09]} Kh6 {[%clk 00:01:09]} {[%emt 00:00:15]} 44. a4 {[%clk 00:33:01]}
{[%emt 00:00:09]} g5+ {[%clk 00:00:51]} {[%emt 00:00:48]} 45. Kg3 {[%clk
00:24:10]} {[%emt 00:09:21]} Kg6 {[%clk 00:00:44]} {[%emt 00:00:38]} 46. Kf3
{[%clk 00:24:21]} {[%emt 00:00:18]} Kh5 {[%clk 00:00:53]} {[%emt 00:00:21]} 47.
fxg5 {[%clk 00:24:41]} {[%emt 00:00:09]} Kxg5 {[%clk 00:01:18]} {[%emt
00:00:06]} 48. Kg3 {[%clk 00:25:00]} {[%emt 00:00:11]} f4+ {[%clk 00:00:44]}
{[%emt 00:01:04]} 49. Kf3 {[%clk 00:25:22]} {[%emt 00:00:07]} Kh4 {[%clk
00:01:11]} {[%emt 00:00:03]} 50. Kxf4 {[%clk 00:25:25]} {[%emt 00:00:27]} Kxh3
{[%clk 00:01:40]} {[%emt 00:00:02]} 51. Ke5 {[%clk 00:25:39]} {[%emt 00:00:16]}
Kg3 {[%clk 00:02:04]} {[%emt 00:00:06]} 52. Kd6 {[%clk 00:26:02]} {[%emt
00:00:06]} Kf4 {[%clk 00:02:28]} {[%emt 00:00:06]} 53. Kc6 {[%clk 00:25:06]}
{[%emt 00:01:26]} Ke4 {[%clk 00:02:53]} {[%emt 00:00:06]} 54. Kb7 {[%clk
00:25:23]} {[%emt 00:00:13]} Kd4 {[%clk 00:03:18]} {[%emt 00:00:05]} 55. Kxa7
{[%clk 00:25:45]} {[%emt 00:00:08]} Kxc4 {[%clk 00:03:44]} {[%emt 00:00:03]} 56.
a5 {[%clk 00:25:20]} {[%emt 00:00:55]} bxa5 {[%clk 00:02:17]} {[%emt 00:01:56]}
57. b6 {[%clk 00:25:42]} {[%emt 00:00:08]} Kd3 {[%clk 00:02:03]} {[%emt
00:00:44]} 58. b7 {[%clk 00:26:04]} {[%emt 00:00:08]} c4 {[%clk 00:02:26]}
{[%emt 00:00:07]} 59. b8=Q {[%clk 00:26:21]} {[%emt 00:00:13]} c3 {[%clk
00:02:45]} {[%emt 00:00:12]} 60. Qf4 {[%clk 00:22:56]} {[%emt 00:03:53]} c2
{[%clk 00:02:20]} {[%emt 00:00:56]} 61. Qc1 {[%clk 00:23:08]} {[%emt 00:00:17]}
a4 {[%clk 00:01:52]} {[%emt 00:00:58]} 62. Kb6 {[%clk 00:22:54]} {[%emt
00:00:45]} a3 {[%clk 00:02:19]} {[%emt 00:00:03]} 63. Kb5 {[%clk 00:23:10]}
{[%emt 00:00:14]} a2 {[%clk 00:02:23]} {[%emt 00:00:26]} 64. Kb4 {[%clk
00:23:24]} {[%emt 00:00:16]} a1=R {[%clk 00:02:24]} {[%emt 00:00:30]} 65. Qxa1
{[%clk 00:23:45]} {[%emt 00:00:09]} Kd2 {[%clk 00:02:51]} {[%emt 00:00:03]} 66.
Qd4+ {[%clk 00:24:00]} {[%emt 00:00:14]} Ke1 {[%clk 00:02:53]} {[%emt
00:00:29]} 67. Qe3+ {[%clk 00:24:07]} {[%emt 00:00:23]} Kd1 {[%clk 00:03:16]}
{[%emt 00:00:07]} 68. Qd3+ {[%clk 00:24:25]} {[%emt 00:00:11]} Kc1 {[%clk
00:03:39]} {[%emt 00:00:07]} 69. Kb3 {[%clk 00:24:47]} {[%emt 00:00:08]} Kb1
{[%clk 00:04:03]} {[%emt 00:00:06]} 70. Qxc2+ {[%clk 00:25:10]} {[%emt
00:00:07]} Ka1 {[%clk 00:04:30]} {[%emt 00:00:03]} 71. Qc1# {[%emt 00:00:04]}
1-0

[Event "Klubbmästerskap 2025 Hängrond"]
[Site "Linköping, Sweden"]
[Date "2025.03.11"]
[Round "3.6"]
[White "Martinelle, Christoffer"]
[Black "Larsson, Elin"]
[Result "1-0"]
[TimeControl "90 min + 30 sec/move"]
[WhiteElo "1765"]
[BlackElo "1666"]

1. c4 {[%clk 01:30:48]} {[%emt 00:00:11]} e5 {[%clk 01:29:28]} {[%emt
00:01:32]} 2. g3 {[%clk 01:30:55]} {[%emt 00:00:22]} Nf6 {[%clk 01:28:40]}
{[%emt 00:01:19]} 3. Bg2 {[%clk 01:30:32]} {[%emt 00:00:54]} c6 {[%clk
01:26:01]} {[%emt 00:03:09]} 4. Nc3 {[%clk 01:28:02]} {[%emt 00:03:00]} Bc5
{[%clk 01:13:56]} {[%emt 00:12:35]} 5. d3 {[%clk 01:19:40]} {[%emt 00:08:52]}
O-O {[%clk 01:01:10]} {[%emt 00:13:16]} 6. Nf3 {[%clk 01:17:55]} {[%emt
00:02:15]} Re8 {[%clk 00:58:45]} {[%emt 00:02:55]} 7. Bg5 {[%clk 01:16:31]}
{[%emt 00:01:54]} h6 {[%clk 00:53:59]} {[%emt 00:05:17]} 8. Bxf6 {[%clk
01:15:19]} {[%emt 00:01:42]} Qxf6 {[%clk 00:53:43]} {[%emt 00:00:45]} 9. O-O
{[%clk 01:13:32]} {[%emt 00:02:17]} Na6 {[%clk 00:44:53]} {[%emt 00:09:20]} 10.
a3 {[%clk 01:08:02]} {[%emt 00:06:00]} Qe7 {[%clk 00:33:25]} {[%emt 00:11:57]}
11. e3 {[%clk 01:05:01]} {[%emt 00:03:30]} d6 {[%clk 00:30:03]} {[%emt
00:03:53]} 12. Rb1 {[%clk 01:01:09]} {[%emt 00:04:22]} Bg4 {[%clk 00:26:11]}
{[%emt 00:04:22]} 13. h3 {[%clk 01:00:14]} {[%emt 00:01:25]} Be6 {[%clk
00:23:53]} {[%emt 00:02:48]} 14. b4 {[%clk 00:59:45]} {[%emt 00:01:00]} Bb6
{[%clk 00:23:23]} {[%emt 00:01:00]} 15. Ne1 {[%clk 00:51:41]} {[%emt 00:08:34]}
Rad8 {[%clk 00:19:08]} {[%emt 00:04:45]} 16. b5 {[%clk 00:48:00]} {[%emt
00:04:10]} Nb8 {[%clk 00:15:20]} {[%emt 00:04:19]} 17. bxc6 {[%clk 00:41:22]}
{[%emt 00:07:09]} bxc6 {[%clk 00:13:59]} {[%emt 00:01:50]} 18. Qb3 {[%clk
00:38:18]} {[%emt 00:03:34]} Qd7 {[%clk 00:08:09]} {[%emt 00:06:20]} 19. Kh2
{[%clk 00:37:01]} {[%emt 00:01:47]} d5 {[%clk 00:04:44]} {[%emt 00:03:55]} 20.
Na4 {[%clk 00:29:17]} {[%emt 00:08:14]} dxc4 {[%clk 00:02:29]} {[%emt
00:02:45]} 21. dxc4 {[%clk 00:29:28]} {[%emt 00:00:19]} Ba5 {[%clk 00:01:58]}
{[%emt 00:01:01]} 22. Nc5 {[%clk 00:28:52]} {[%emt 00:01:06]} Qd6 {[%clk
00:01:51]} {[%emt 00:00:37]} 23. Nb7 {[%clk 00:25:24]} {[%emt 00:03:58]} Qc7
{[%clk 00:01:49]} {[%emt 00:00:32]} 24. Nxd8 {[%clk 00:25:46]} {[%emt
00:00:07]} Rxd8 {[%clk 00:02:13]} {[%emt 00:00:07]} 25. Nf3 {[%clk 00:24:06]}
{[%emt 00:02:10]} Na6 {[%clk 00:01:45]} {[%emt 00:00:58]} 26. Qb7 {[%clk
00:22:58]} {[%emt 00:01:37]} Bxc4 {[%clk 00:01:24]} {[%emt 00:00:51]} 27. Qxc7
{[%clk 00:23:07]} {[%emt 00:00:21]} Nxc7 {[%clk 00:01:35]} {[%emt 00:00:20]} 28.
Rfc1 {[%clk 00:22:58]} {[%emt 00:00:39]} Bd5 {[%clk 00:00:42]} {[%emt
00:01:22]} 29. Nxe5 {[%clk 00:22:20]} {[%emt 00:01:08]} Bxg2 {[%clk 00:00:36]}
{[%emt 00:00:36]} 30. Kxg2 {[%clk 00:22:42]} {[%emt 00:00:09]} Bb6 {[%clk
00:00:35]} {[%emt 00:00:31]} 31. Rxc6 {[%clk 00:20:23]} {[%emt 00:02:49]} 1-0

[Event "Klubbmästerskap 2025 Hängrond"]
[Site "Linköping, Sweden"]
[Date "2025.03.11"]
[Round "3.7"]
[White "Larsson, Emma 2008"]
[Black "Andersson, Albin"]
[Result "1/2-1/2"]
[TimeControl "90 min + 30 sec/move"]
[WhiteElo "1754"]
[BlackElo "1614"]

1. e4 {[%clk 01:30:57]} {[%emt 00:00:02]} e5 {[%clk 01:30:49]} {[%emt
00:00:12]} 2. f4 {[%clk 01:31:22]} {[%emt 00:00:04]} Bc5 {[%clk 01:30:44]}
{[%emt 00:00:35]} 3. Nf3 {[%clk 01:31:34]} {[%emt 00:00:17]} d6 {[%clk
01:30:45]} {[%emt 00:00:30]} 4. c3 {[%clk 01:31:52]} {[%emt 00:00:12]} Bg4
{[%clk 01:28:04]} {[%emt 00:03:11]} 5. Bc4 {[%clk 01:22:16]} {[%emt 00:10:05]}
Nf6 {[%clk 01:24:57]} {[%emt 00:03:38]} 6. d4 {[%clk 01:18:12]} {[%emt
00:04:34]} exd4 {[%clk 01:18:32]} {[%emt 00:06:55]} 7. cxd4 {[%clk 01:17:51]}
{[%emt 00:00:52]} Bb6 {[%clk 01:16:03]} {[%emt 00:02:59]} 8. Nc3 {[%clk
01:15:30]} {[%emt 00:02:51]} Nc6 {[%clk 01:09:47]} {[%emt 00:06:47]} 9. Be3
{[%clk 01:06:13]} {[%emt 00:09:46]} Nxe4 {[%clk 00:59:57]} {[%emt 00:10:21]} 10.
Bxf7+ {[%clk 00:59:15]} {[%emt 00:07:28]} Kxf7 {[%clk 01:00:01]} {[%emt
00:00:25]} 11. Nxe4 {[%clk 00:59:33]} {[%emt 00:00:12]} Bxf3 {[%clk 00:57:51]}
{[%emt 00:02:41]} 12. Qxf3 {[%clk 00:54:09]} {[%emt 00:05:54]} h6 {[%clk
00:46:09]} {[%emt 00:12:13]} 13. O-O-O {[%clk 00:49:20]} {[%emt 00:05:19]} Re8
{[%clk 00:44:17]} {[%emt 00:02:21]} 14. Rhe1 {[%clk 00:26:07]} {[%emt
00:23:42]} Qd7 {[%clk 00:37:41]} {[%emt 00:07:07]} 15. f5 {[%clk 00:22:24]}
{[%emt 00:04:13]} Kg8 {[%clk 00:28:39]} {[%emt 00:09:32]} 16. f6 {[%clk
00:12:32]} {[%emt 00:10:23]} Rf8 {[%clk 00:22:17]} {[%emt 00:06:51]} 17. Qg3
{[%clk 00:08:39]} {[%emt 00:04:23]} d5 {[%clk 00:13:22]} {[%emt 00:09:25]} 18.
fxg7 {[%clk 00:06:43]} {[%emt 00:02:26]} Rf7 {[%clk 00:12:53]} {[%emt
00:00:59]} 19. Nc3 {[%clk 00:04:09]} {[%emt 00:03:04]} Rxg7 {[%clk 00:11:40]}
{[%emt 00:01:42]} 20. Qf3 {[%clk 00:04:29]} {[%emt 00:00:09]} Rf8 {[%clk
00:07:11]} {[%emt 00:05:00]} 21. Qxd5+ {[%clk 00:03:28]} {[%emt 00:01:31]} Qxd5
{[%clk 00:07:30]} {[%emt 00:00:10]} 22. Nxd5 {[%clk 00:03:57]} {[%emt
00:00:02]} Rxg2 {[%clk 00:07:10]} {[%emt 00:00:49]} 23. Bxh6 {[%clk 00:03:07]}
{[%emt 00:01:21]} Rd8 {[%clk 00:07:07]} {[%emt 00:00:32]} 24. Ne7+ {[%clk
00:00:38]} {[%emt 00:03:01]} Nxe7 {[%clk 00:05:48]} {[%emt 00:01:49]} 25. Rxe7
{[%clk 00:01:07]} {[%emt 00:00:01]} Rxd4 {[%clk 00:05:06]} {[%emt 00:01:11]} 26.
Rxd4 {[%clk 00:00:32]} {[%emt 00:01:05]} Bxd4 {[%emt 00:01:02]} 27. Rxc7 {[%clk
00:00:43]} {[%emt 00:00:17]} Rxh2 {[%clk 00:04:15]} {[%emt 00:00:51]} 28. Rc8+
{[%clk 00:00:34]} {[%emt 00:00:40]} Kf7 {[%clk 00:03:54]} {[%emt 00:00:50]} 29.
Rf8+ {[%clk 00:00:53]} {[%emt 00:00:10]} Ke7 {[%clk 00:02:24]} {[%emt
00:02:00]} 30. Rb8 {[%clk 00:00:38]} {[%emt 00:00:46]} Rxh6 {[%clk 00:02:16]}
{[%emt 00:00:37]} 31. Rxb7+ {[%clk 00:01:07]} {[%emt 00:00:02]} Kd6 {[%clk
00:02:24]} {[%emt 00:00:22]} 32. Kc2 {[%clk 00:01:16]} {[%emt 00:00:21]} Rh2+
{[%clk 00:02:18]} {[%emt 00:00:36]} 33. Kb1 {[%clk 00:01:10]} {[%emt 00:00:37]}
Kc6 {[%clk 00:02:10]} {[%emt 00:00:38]} 34. Rb3 {[%clk 00:00:35]} {[%emt
00:01:01]} Rh1+ {[%clk 00:01:39]} {[%emt 00:01:04]} 1/2-1/2